fUST/lending_fUST_20250729
["ID","MTS","AMOUNT","RATE_DAILY","PERIOD"]
[375718062,1753722648732,-492.48,0.00019726,2]
[375718063,1753722648742,-460.0,0.00019726,2]
[375718065,1753722648751,-2446.09,0.00019726,2]
[375718067,1753722648761,-460.0,0.00019726,2]
[375718069,1753722648771,-460.0,0.00019726,2]
[375718071,1753722648780,-460.0,0.00019726,2]
[375718073,1753722648790,-345.49769154,0.00019726,2]
[375718082,1753722648865,-464.27552028,0.00019178,2]
[375718084,1753722648875,-460.0,0.00019178,2]
[375718086,1753722648884,-410.61230846,0.00019726,2]
[375718088,1753722648894,-460.0,0.00019726,2]
[375718090,1753722648903,-460.0,0.00019726,2]
[375718091,1753722648912,-481.47,0.00019726,2]
[375718094,1753722648922,-460.0,0.00019726,2]
[375718095,1753722648931,-460.0,0.00019726,2]
[375718097,1753722648940,-460.0,0.00019726,2]
[375718099,1753722648950,-460.0,0.00019726,2]
[375718101,1753722648959,-460.0,0.00019726,2]
[375718103,1753722648969,-460.0,0.00019726,2]
[375718105,1753722648978,-2215.47,0.00019726,2]
[375718106,1753722648988,-460.0,0.00019726,2]
[375718107,1753722648997,-460.0,0.00019726,2]
[375718108,1753722649007,-460.0,0.00019726,2]
[375718109,1753722649016,-460.0,0.00019726,2]
[375718110,1753722649025,-460.0,0.00019726,2]
[375718111,1753722649035,-208.72027163,0.00019726,2]
[375718112,1753722649044,-460.0,0.00019726,2]
[375718131,1753722649256,-460.0,0.00019726,2]
[375718134,1753722649275,-460.0,0.00019726,2]
[375718137,1753722649290,-185.11218941,0.00019726,2]
[375718139,1753722649303,-274.88781059,0.00019726,2]
[375718141,1753722649312,-460.0,0.00019726,2]
[375718142,1753722649321,-460.0,0.00019726,2]
[375718143,1753722649331,-460.0,0.00019726,2]
[375718144,1753722649340,-460.0,0.00019726,2]
[375718145,1753722649350,-510.66,0.00019726,2]
[375718146,1753722649359,-1823.3,0.00019726,2]
[375718147,1753722649369,-460.0,0.00019726,2]
[375718148,1753722649379,-1110.3,0.00019726,2]
[375718149,1753722649389,-460.0,0.00019726,2]
[375718150,1753722649399,-460.0,0.00019726,2]
[375718151,1753722649409,-1010.93,0.00019726,2]
[375718152,1753722649418,-460.0,0.00019726,2]
[375718153,1753722649427,-291.93187022,0.00019726,2]
[375718154,1753722649437,-256.46401177,0.00019726,2]
[375718157,1753722649660,-460.0,0.00019178,2]
[375718159,1753722649670,-203.53598823,0.00019726,2]
[375718161,1753722649679,-460.0,0.00019726,2]
[375718163,1753722649689,-460.0,0.00019726,2]
[375718165,1753722649698,-1574.06,0.00019726,2]
[375718167,1753722649707,-460.0,0.00019726,2]
[375718169,1753722649717,-568.71,0.00019726,2]
[375718171,1753722649726,-855.34,0.00019726,2]
[375718173,1753722649735,-460.0,0.00019726,2]
[375718175,1753722649744,-460.0,0.00019726,2]
[375718177,1753722649753,-460.0,0.00019726,2]
[375718179,1753722649763,-489.03,0.00019726,2]
[375718181,1753722649772,-615.47,0.00019726,2]
[375718183,1753722649781,-460.0,0.00019726,2]
[375718185,1753722649791,-460.0,0.00019726,2]
[375718187,1753722649800,-460.0,0.00019726,2]
[375718188,1753722649810,-460.0,0.00019726,2]
[375718191,1753722649820,-500.0,0.00019773,2]
[375718193,1753722649831,-500.0,0.00019773,2]
[375718195,1753722649840,-500.0,0.00019773,2]
[375718197,1753722649850,-500.0,0.00019773,2]
[375718199,1753722649860,-500.0,0.00019773,2]
[375718201,1753722649874,-500.0,0.00019773,2]
[375718202,1753722649883,-500.0,0.00019773,2]
[375718205,1753722649893,-8863.45454334,0.000199,2]
[375718207,1753722649906,-43002.00301635,0.000199,2]
[375718208,1753722649916,-2940.08096669,0.00019903,2]
[375718209,1753722649925,-553.04767877,0.00019921,2]
[375718210,1753722649935,-160.0,0.00019977,2]
[375718211,1753722649945,-160.0,0.00019977,2]
[375718212,1753722649955,-460.0,0.0002,2]
[375718223,1753722650171,-168.9279012,0.0002,2]
[375718225,1753722650181,-460.0,0.0002,2]
[375718227,1753722650190,-460.0,0.0002,2]
[375718229,1753722650199,-460.0,0.0002,2]
[375718231,1753722650209,-460.0,0.0002,2]
[375718233,1753722650218,-460.0,0.0002,2]
[375718235,1753722650231,-460.0,0.0002,2]
[375718237,1753722650240,-460.0,0.0002,2]
[375718239,1753722650249,-3141.39,0.0002,2]
[375718241,1753722650258,-460.0,0.0002,2]
[375718243,1753722650267,-460.0,0.0002,2]
[375718245,1753722650277,-460.0,0.0002,2]
[375718247,1753722650287,-460.0,0.0002,2]
[375718249,1753722650296,-460.0,0.0002,2]
[375718251,1753722650307,-460.0,0.0002,2]
[375718253,1753722650317,-460.0,0.0002,2]
[375718255,1753722650327,-460.0,0.0002,2]
[375718257,1753722650336,-460.0,0.0002,2]
[375718259,1753722650345,-460.0,0.0002,2]
[375718261,1753722650354,-591.88,0.0002,2]
[375718263,1753722650364,-303.88409203,0.0002,2]
[375718265,1753722650374,-1539.89,0.0002,2]
[375718267,1753722650384,-460.0,0.0002,2]
[375718269,1753722650395,-460.0,0.0002,2]
[375718271,1753722650404,-460.0,0.0002,2]
[375718273,1753722650413,-516.50677108,0.0002,2]
[375718275,1753722650422,-460.0,0.0002,2]
[375718277,1753722650431,-460.0,0.0002,2]
[375718279,1753722650441,-460.0,0.0002,2]
[375718280,1753722650450,-460.0,0.0002,2]
[375718282,1753722650459,-460.0,0.0002,2]
[375718284,1753722650469,-460.0,0.0002,2]
[375718286,1753722650478,-460.0,0.0002,2]
[375718288,1753722650488,-460.0,0.0002,2]
[375718290,1753722650497,-460.0,0.0002,2]
[375718292,1753722650507,-460.0,0.0002,2]
[375718294,1753722650516,-460.0,0.0002,2]
[375718296,1753722650525,-460.0,0.0002,2]
[375718298,1753722650534,-506.00902275,0.0002,2]
[375718300,1753722650544,-460.0,0.0002,2]
[375718302,1753722650553,-460.0,0.0002,2]
[375718304,1753722650563,-460.0,0.0002,2]
[375718306,1753722650572,-460.0,0.0002,2]
[375718308,1753722650581,-460.0,0.0002,2]
[375718310,1753722650590,-460.0,0.0002,2]
[375718312,1753722650600,-460.0,0.0002,2]
[375718314,1753722650610,-460.0,0.0002,2]
[375718316,1753722650621,-465.0139392,0.0002,2]
[375718318,1753722650630,-1748.64,0.0002,2]
[375718320,1753722650640,-460.0,0.0002,2]
[375718322,1753722650649,-203.95080642,0.0002,2]
[375718324,1753722650658,-1180.64,0.0002,2]
[375718326,1753722650668,-460.0,0.0002,2]
[375718328,1753722650677,-305.60639678,0.0002,2]
[375718330,1753722650687,-460.0,0.0002,2]
[375718332,1753722650697,-460.0,0.0002,2]
[375718334,1753722650706,-209.56318773,0.0002,2]
[375718336,1753722650715,-460.0,0.0002,2]
[375718338,1753722650724,-1359.9,0.0002,2]
[375718340,1753722650733,-460.0,0.0002,2]
[375718342,1753722650743,-381.74627388,0.0002,2]
[375718344,1753722650757,-83.44437193,0.0002,2]
[375718346,1753722650766,-460.0,0.0002,2]
[375718348,1753722650775,-460.0,0.0002,2]
[375718350,1753722650785,-661.87,0.0002,2]
[375718352,1753722650795,-460.0,0.0002,2]
[375718354,1753722650804,-460.0,0.0002,2]
[375718356,1753722650814,-503.93,0.0002,2]
[375718358,1753722650823,-460.0,0.0002,2]
[375718360,1753722650834,-460.0,0.0002,2]
[375718362,1753722650843,-460.0,0.0002,2]
[375718364,1753722650853,-460.0,0.0002,2]
[375718366,1753722650863,-503.23,0.0002,2]
[375718368,1753722650873,-471.7,0.0002,2]
[375718370,1753722650882,-226.28167786,0.0002,2]
[375718372,1753722650891,-492.48,0.0002,2]
[375718374,1753722650900,-2446.09,0.0002,2]
[375718376,1753722650910,-460.0,0.0002,2]
[375718378,1753722650919,-756.11,0.0002,2]
[375718380,1753722650929,-269.37691507,0.0002,2]
[375718382,1753722650938,-460.0,0.0002,2]
[375718384,1753722650947,-481.47,0.0002,2]
[375718386,1753722650957,-460.0,0.0002,2]
[375718388,1753722650966,-460.0,0.0002,2]
[375718390,1753722650975,-460.0,0.0002,2]
[375718392,1753722650984,-460.0,0.0002,2]
[375718394,1753722650993,-460.0,0.0002,2]
[375718395,1753722651002,-460.0,0.0002,2]
[375718397,1753722651011,-2215.47,0.0002,2]
[375718399,1753722651021,-460.0,0.0002,2]
[375718401,1753722651030,-460.0,0.0002,2]
[375718403,1753722651039,-460.0,0.0002,2]
[375718405,1753722651049,-460.0,0.0002,2]
[375718407,1753722651058,-460.0,0.0002,2]
[375718409,1753722651067,-427.1441636,0.0002,2]
[375718412,1753722651080,-32.8558364,0.0002,2]
[375718414,1753722651089,-460.0,0.0002,2]
[375718416,1753722651098,-460.0,0.0002,2]
[375718417,1753722651107,-276.5688396,0.0002,2]
[375721168,1753722964237,-164.0,0.00018658,3]
[375721170,1753722987816,161.628816,0.00013699,2]
[375721175,1753723115451,-300.0,0.00019076,2]
[375721176,1753723115480,-180.0,0.00019077,2]
[375721177,1753723115508,-194.0,0.00019077,2]
[375721178,1753723115538,-1200.0,0.00019077,2]
[375721179,1753723115568,-1200.0,0.00019077,2]
[375721180,1753723115597,-967.88529293,0.00019078,2]
[375721181,1753723115853,-1916.22941414,0.00019078,2]
[375721182,1753723116279,-3795.93211286,0.00019078,2]
[375721183,1753723116671,-2408.13577428,0.00019078,2]
[375721184,1753723119005,-9202.35798013,0.00019078,2]
[375721185,1753723119814,-10000.0,0.00019078,2]
[375721186,1753723120061,-10000.0,0.00019078,2]
[375721187,1753723120352,-10000.0,0.00019078,2]
[375721188,1753723120793,-10000.0,0.00019078,2]
[375721189,1753723120936,-10000.0,0.00019078,2]
[375721190,1753723121267,-10000.0,0.00019078,2]
[375721191,1753723121497,-10000.0,0.00019078,2]
[375721192,1753723121784,-10000.0,0.00019078,2]
[375721193,1753723122210,-10000.0,0.00019078,2]
[375721194,1753723122480,-10000.0,0.00019078,2]
[375721195,1753723122812,-10000.0,0.00019078,2]
[375721196,1753723123388,-10000.0,0.00019078,2]
[375721197,1753723123795,-10000.0,0.00019078,2]
[375721198,1753723124030,-10000.0,0.00019078,2]
[375721199,1753723124297,-10000.0,0.00019078,2]
[375721201,1753723124561,-10000.0,0.00019078,2]
[375721202,1753723124850,-10000.0,0.00019078,2]
[375721203,1753723125193,-10000.0,0.00019078,2]
[375721204,1753723125602,-10000.0,0.00019078,2]
[375721205,1753723125815,-10000.0,0.00019078,2]
[375721206,1753723126082,-10000.0,0.00019078,2]
[375721207,1753723126409,-10000.0,0.00019078,2]
[375721208,1753723128886,-10000.0,0.00019078,2]
[375721209,1753723129177,-10000.0,0.00019078,2]
[375721210,1753723129458,-10000.0,0.00019078,2]
[375721211,1753723129760,-1454.36306141,0.00019078,2]
[375721212,1753723145886,5000.0,0.000191,2]
[375721213,1753723161508,2091.27387718,0.000191,2]
[375721214,1753723161532,2908.72612282,0.000191,2]
[375721216,1753723171316,219.73346999,0.00019077,2]
[375721217,1753723171684,219.73346998,0.00019078,2]
[375721218,1753723175446,185.60276192,0.00019016,2]
[375721219,1753723177278,5000.0,0.000191,2]
[375721221,1753723192478,1466.20417529,0.000191,2]
[375721222,1753723192500,3533.79582471,0.000191,2]
[375721223,1753723208832,5000.0,0.000191,2]
[375721224,1753723218361,1466.20417529,0.00018978,2]
[375721225,1753723218389,10000.0,0.00018978,2]
[375721226,1753723218412,10000.0,0.00018978,2]
[375721227,1753723218435,10000.0,0.00018978,2]
[375721228,1753723218456,10000.0,0.00018978,2]
[375721229,1753723218480,10000.0,0.00018978,2]
[375721230,1753723218503,10000.0,0.00018978,2]
[375721231,1753723218527,10000.0,0.00018978,2]
[375721232,1753723218552,10000.0,0.00018978,2]
[375721233,1753723218577,10000.0,0.00018978,2]
[375721234,1753723218600,10000.0,0.00018978,2]
[375721235,1753723218627,10000.0,0.00018978,2]
[375721236,1753723218650,10000.0,0.00018978,2]
[375721237,1753723218674,10000.0,0.00018978,2]
[375721238,1753723218697,10000.0,0.00018978,2]
[375721239,1753723218723,10000.0,0.00018978,2]
[375721240,1753723218748,10000.0,0.00018978,2]
[375721241,1753723218772,10000.0,0.00018978,2]
[375721242,1753723218796,10000.0,0.00018978,2]
[375721243,1753723218820,10000.0,0.00018978,2]
[375721244,1753723218845,10000.0,0.00018978,2]
[375721245,1753723218868,10000.0,0.00018978,2]
[375721246,1753723218900,10000.0,0.00018978,2]
[375721247,1753723218927,10000.0,0.00018978,2]
[375721248,1753723218953,10000.0,0.00018978,2]
[375721249,1753723218977,10000.0,0.00018978,2]
[375721250,1753723219000,10000.0,0.00018978,2]
[375721251,1753723219024,10000.0,0.00018978,2]
[375721252,1753723219046,10000.0,0.00018978,2]
[375721253,1753723219070,10000.0,0.00018978,2]
[375721254,1753723219092,10000.0,0.00018978,2]
[375721255,1753723219115,10000.0,0.00018978,2]
[375721256,1753723219142,10000.0,0.00018978,2]
[375721257,1753723219165,10000.0,0.00018978,2]
[375721258,1753723219187,10000.0,0.00018978,2]
[375721259,1753723219210,10000.0,0.00018978,2]
[375721260,1753723219233,10000.0,0.00018978,2]
[375721261,1753723219257,8533.79582471,0.00018978,2]
[375721262,1753723224669,1466.20417529,0.000191,2]
[375721263,1753723224692,3533.79582471,0.000191,2]
[375721264,1753723230121,6466.20417529,0.00018245,2]
[375721265,1753723230145,10000.0,0.00018245,2]
[375721266,1753723230166,10000.0,0.00018245,2]
[375721267,1753723230187,10000.0,0.00018245,2]
[375721268,1753723230209,10000.0,0.00018245,2]
[375721269,1753723230230,9838.371184,0.00018245,2]
[375721270,1753723230254,9672.0,0.00018245,2]
[375721271,1753723230281,25000.0,0.00018245,2]
[375721272,1753723230740,-433.4025675,0.00018245,2]
[375721273,1753723239139,-708.80251376,0.00018245,2]
[375721274,1753723239856,157.21464905,7.2e-07,2]
[375721275,1753723239952,157.21464905,7.2e-07,2]
[375721276,1753723240120,157.21464905,7.2e-07,2]
[375721277,1753723240254,157.21464905,7.2e-07,2]
[375721278,1753723240372,157.21464905,7.2e-07,2]
[375721279,1753723240496,157.21464905,7.2e-07,2]
[375721280,1753723240621,157.21464905,7.2e-07,2]
[375721281,1753723240734,157.21464905,7.2e-07,2]
[375721282,1753723240872,157.21464905,7.2e-07,2]
[375721283,1753723241063,5000.0,0.00018101,2]
[375721284,1753723247509,-460.0,0.00018245,2]
[375721285,1753723254356,-678.12,0.00018245,2]
[375721286,1753723255732,5000.0,0.00018101,2]
[375721287,1753723255915,-460.0,0.00018245,2]
[375721298,1753723263609,-460.0,0.00018245,2]
[375721299,1753723270164,-280.0,0.00018244,2]
[375721300,1753723272318,-166.0,0.00018159,2]
[375721301,1753723272341,-20.0,0.00018244,2]
[375721302,1753723272362,-163.13003174,0.00018245,2]
[375721303,1753723277229,1338.52697495,0.00017698,2]
[375721304,1753723277647,341.994255,0.00017759,2]
[375721305,1753723277940,-200.0,0.00018245,2]
[375721306,1753723281159,-244.099502,0.00018245,2]
[375721307,1753723285136,-460.0,0.00018245,2]
[375721308,1753723287461,-460.0,0.00018245,2]
[375721309,1753723289025,-1001.0,0.00018244,2]
[375721312,1753723294455,-460.0,0.00018245,2]
[375721313,1753723295734,-8300.90186742,0.00018245,2]
[375721314,1753723295971,-10000.0,0.00018245,2]
[375721315,1753723296272,-1702.25865751,0.00018245,2]
[375721316,1753723296294,-6595.48268498,0.00018245,2]
[375721317,1753723296516,-460.0,0.00018308,2]
[375721318,1753723296551,-4540.0,0.00018308,2]
[375721319,1753723296580,-390.976753,0.00018527,2]
[375721320,1753723296630,-138.046494,0.00019,2]
[375721321,1753723296835,-77.36393408,0.00019,2]
[375721322,1753723296864,-4845.27213184,0.000191,2]
[375721323,1753723296899,-154.72786816,0.000191,2]
[375721324,1753723297967,9749.8394508,0.00018133,2]
[375721325,1753723303855,250.1605492,0.000191,2]
[375721326,1753723303886,4749.8394508,0.000191,2]
[375721327,1753723312249,5000.0,0.000191,2]
[375721328,1753723321089,250.1605492,0.000191,2]
[375721329,1753723321112,4749.8394508,0.000191,2]
[375721337,1753723328861,2744.7604036,0.000191,2]
[375721338,1753723337369,2505.4001456,0.000191,2]
[375721339,1753723337391,2494.5998544,0.000191,2]
[375721342,1753723343854,202.56992731,0.00019073,2]
[375721344,1753723344966,1563.15886921,0.00019073,2]
[375721345,1753723353319,5000.0,0.000191,2]
[375721346,1753723361420,631.17899552,0.00019078,2]
[375721347,1753723369644,108.49235356,0.000191,2]
[375721348,1753723369671,4891.50764644,0.000191,2]
[375721349,1753723385372,5000.0,0.000191,2]
[375721350,1753723397963,108.49235356,0.00018245,2]
[375721351,1753723397984,91.21290774,0.00018245,2]
[375721352,1753723401525,5000.0,0.000191,2]
[375721354,1753723417782,4908.78709226,0.000191,2]
[375721355,1753723417807,91.21290774,0.000191,2]
[375721362,1753723433544,5000.0,0.000191,2]
[375721364,1753723449230,4908.78709226,0.000191,2]
[375721365,1753723449253,91.21290774,0.000191,2]
[375721366,1753723467093,5000.0,0.000191,2]
[375721367,1753723474152,163.3710958,0.00018391,2]
[375721368,1753723484642,4745.41599646,0.000191,2]
[375721369,1753723484664,254.58400354,0.000191,2]
[375721370,1753723499798,5000.0,0.000191,2]
[375721371,1753723503102,4745.41599646,0.0001801,2]
[375721372,1753723503127,4246.73400354,0.0001801,2]
[375721373,1753723503190,5753.26599646,0.0001801,2]
[375721374,1753723503212,10000.0,0.0001801,2]
[375721375,1753723503235,8814.89035466,0.0001801,2]
[375721376,1753723515703,1185.10964534,0.000191,2]
[375721377,1753723515730,3814.89035466,0.000191,2]
[375721378,1753723530941,5000.0,0.000191,2]
[375721379,1753723541435,157.21464903,7.2e-07,2]
[375721380,1753723546942,1027.89499631,0.00019078,2]
[375721381,1753723546966,6875.07177954,0.00019078,2]
[375721382,1753723547534,3124.92822046,0.000191,2]
[375721383,1753723547562,1875.07177954,0.000191,2]
[375721384,1753723563045,5000.0,0.000191,2]
[375721385,1753723578853,3124.92822046,0.000191,2]
[375721386,1753723578877,1875.07177954,0.000191,2]
[375721387,1753723580215,1048.78295782,0.00018603,2]
[375721388,1753723590853,156.4720611,0.00019073,2]
[375721389,1753723594553,5000.0,0.000191,2]
[375721390,1753723609719,1919.67320154,0.000191,2]
[375721391,1753723609743,3080.32679846,0.000191,2]
[375721392,1753723625453,5000.0,0.000191,2]
[375721393,1753723629515,250.0,0.0001799,2]
[375721396,1753723641777,1669.67320154,0.000191,2]
[375721397,1753723641800,3330.32679846,0.000191,2]
[375721398,1753723649107,-500.72,0.00019168,3]
[375721399,1753723649128,-280.65641991,0.00019173,2]
[375721400,1753723649148,-500.0,0.00019173,2]
[375721401,1753723649170,-226.74935338,0.00019176,2]
[375721402,1753723651095,-73.25064662,0.00019176,2]
[375721403,1753723651122,-1200.0,0.00019177,2]
[375721404,1753723651147,-1200.0,0.00019177,2]
[375721405,1753723651175,-510.00000044,0.00019178,2]
[375721406,1753723651202,-460.0,0.00019178,2]
[375721407,1753723651233,-202.97774291,0.00019178,2]
[375721408,1753723651260,-460.0,0.00019178,2]
[375721409,1753723651287,-212.91017159,0.00019178,2]
[375721410,1753723657026,5000.0,0.000191,2]
[375721411,1753723661427,1669.67320154,0.00018392,2]
[375721412,1753723661449,10000.0,0.00018392,2]
[375721413,1753723661472,10000.0,0.00018392,2]
[375721414,1753723661495,3230.32679846,0.00018392,2]
[375721415,1753723664239,6769.67320154,0.00018245,2]
[375721416,1753723664262,10000.0,0.00018245,2]
[375721417,1753723664284,10000.0,0.00018245,2]
[375721418,1753723664306,10000.0,0.00018245,2]
[375721419,1753723664328,10000.0,0.00018245,2]
[375721420,1753723664349,3346.37207996,0.00018245,2]
[375721421,1753723670861,6653.62792004,0.00018,2]
[375721422,1753723670883,5114.39506384,0.00018,2]
[375721423,1753723672408,3317.801842,0.00018392,2]
[375721424,1753723672805,1567.80309416,0.000191,2]
[375721425,1753723672829,3432.19690584,0.000191,2]
[375721426,1753723688594,5000.0,0.000191,2]
[375721427,1753723694403,415.19422959,0.00010618,2]
[375721428,1753723696320,433.4025675,0.00018351,2]
[375721429,1753723696351,719.20629707,0.000125,2]
[375721430,1753723696372,10000.0,0.000125,2]
[375721431,1753723696393,664.87030547,0.000125,2]
[375721432,1753723706662,5000.0,0.000191,2]
[375721433,1753723707508,277.87727429,0.00014114,2]
[375721434,1753723709616,282.72696218,0.0001,2]
[375721435,1753723711242,3774.52545806,0.00019078,2]
[375721436,1753723711267,10000.0,0.00019078,2]
[375721437,1753723711291,10000.0,0.00019078,2]
[375721438,1753723711314,10000.0,0.00019078,2]
[375721439,1753723711336,10000.0,0.00019078,2]
[375721440,1753723711359,10000.0,0.00019078,2]
[375721441,1753723711382,10000.0,0.00019078,2]
[375721442,1753723711405,10000.0,0.00019078,2]
[375721443,1753723711427,10000.0,0.00019078,2]
[375721444,1753723711450,10000.0,0.00019078,2]
[375721445,1753723711472,10000.0,0.00019078,2]
[375721446,1753723711499,10000.0,0.00019078,2]
[375721447,1753723711524,10000.0,0.00019078,2]
[375721448,1753723711546,10000.0,0.00019078,2]
[375721449,1753723711570,10000.0,0.00019078,2]
[375721450,1753723711594,10000.0,0.00019078,2]
[375721451,1753723711616,6225.47454194,0.00019078,2]
[375721452,1753723714482,3774.52545806,0.00017,2]
[375721453,1753723714508,5010.56193601,0.00017,2]
[375721454,1753723717369,3012.50542686,0.00018,2]
[375721455,1753723718776,580.81882315,0.000149,2]
[375721456,1753723719028,1000.0,0.0001,2]
[375721457,1753723719718,1685.98649261,0.00018,2]
[375721458,1753723720864,528.095391,0.0002,120]
[375721459,1753723723334,210.78751457,0.00016,2]
[375721460,1753723724781,7315.89613004,0.0001,2]
[375721468,1753723803184,966.54586535,0.0001801,2]
[375721469,1753723803209,896.85370615,0.0001801,2]
[375721508,1753723837343,-168.31734441,0.00018695,2]
[375721510,1753723837354,-1918.15879595,0.00018785,2]
[375721617,1753723838521,-0.74781404,0.00018785,2]
[375721618,1753723838531,-5000.0,0.00018795,2]
[375721620,1753723838540,-300.0,0.00018984,2]
[375721622,1753723838550,-480.0,0.00018984,2]
[375721623,1753723838563,-5000.0,0.00018985,2]
[375721625,1753723838573,-255.0,0.00019016,2]
[375721627,1753723838583,-564.61046013,0.000191,2]
[375721629,1753723838593,-500.0,0.00019173,2]
[375721631,1753723838603,-500.0,0.00019177,2]
[375721634,1753723838614,-566.85046835,0.00019177,2]
[375721636,1753723838624,-500.0,0.00019177,2]
[375721638,1753723838635,-500.0,0.00019177,2]
[375721640,1753723838645,-500.0,0.00019177,2]
[375721642,1753723838654,-500.0,0.00019177,2]
[375721644,1753723838664,-499.99999999,0.00019177,2]
[375721646,1753723838674,-250.67846614,0.00019178,2]
[375721648,1753723838684,-460.0,0.00019178,2]
[375721650,1753723838694,-460.0,0.00019178,2]
[375721652,1753723838705,-380.39555208,0.00019178,2]
[375721654,1753723838717,-460.75633619,0.00019178,2]
[375721656,1753723838727,-168.97318105,0.00019178,2]
[375721658,1753723838737,-460.0,0.00019178,2]
[375721660,1753723838747,-460.0,0.00019178,2]
[375721662,1753723838757,-460.0,0.00019178,2]
[375721664,1753723838767,-460.0,0.00019178,2]
[375721666,1753723838777,-460.0,0.00019178,2]
[375721668,1753723838787,-460.0,0.00019178,2]
[375721671,1753723838796,-460.0,0.00019178,2]
[375721673,1753723838805,-460.0,0.00019178,2]
[375721675,1753723838815,-460.0,0.00019178,2]
[375721677,1753723838826,-460.0,0.00019178,2]
[375721679,1753723838835,-460.0,0.00019178,2]
[375721681,1753723838845,-460.0,0.00019178,2]
[375721683,1753723838854,-460.0,0.00019178,2]
[375721685,1753723838866,-460.0,0.00019178,2]
[375721687,1753723838876,-212.81387329,0.00019178,2]
[375721689,1753723838885,-460.0,0.00019178,2]
[375721691,1753723838894,-460.0,0.00019178,2]
[375721693,1753723838904,-460.0,0.00019178,2]
[375721695,1753723838915,-460.0,0.00019178,2]
[375721697,1753723838924,-460.0,0.00019178,2]
[375721699,1753723838933,-460.0,0.00019178,2]
[375721701,1753723838943,-460.0,0.00019178,2]
[375721703,1753723838953,-460.0,0.00019178,2]
[375721705,1753723838962,-460.0,0.00019178,2]
[375721707,1753723838972,-460.0,0.00019178,2]
[375721709,1753723838982,-460.0,0.00019178,2]
[375721711,1753723838991,-460.0,0.00019178,2]
[375721714,1753723839006,-460.0,0.00019178,2]
[375721716,1753723839017,-460.0,0.00019178,2]
[375721718,1753723839027,-460.0,0.00019178,2]
[375721720,1753723839038,-460.0,0.00019178,2]
[375721722,1753723839047,-460.0,0.00019178,2]
[375721724,1753723839057,-455.0,0.00019178,2]
[375721726,1753723839067,-460.0,0.00019178,2]
[375721728,1753723839076,-460.0,0.00019178,2]
[375721730,1753723839087,-460.0,0.00019178,2]
[375721732,1753723839097,-461.3665911,0.00019178,2]
[375721734,1753723839106,-458.33004213,0.00019178,2]
[375721736,1753723839117,-460.0,0.00019178,2]
[375721738,1753723839127,-460.0,0.00019178,2]
[375721740,1753723839136,-460.0,0.00019178,2]
[375721742,1753723839147,-460.75328239,0.00019178,2]
[375721744,1753723839157,-460.0,0.00019178,2]
[375721746,1753723839168,-460.0,0.00019178,2]
[375721748,1753723839177,-460.0,0.00019178,2]
[375721750,1753723839187,-460.0,0.00019178,2]
[375721752,1753723839197,-460.9107218,0.00019178,2]